Workbook

Sheet Warning
A1: These template sheets come with some scores already entered into cells. These scores act as placeholders and demonstrate what scores are necessary.
A5: Be sure to delete any scores that do not pertain to your particular case.
A7: We (Ron Dumont and John Willis), take no responsibility for any errors made while using these templates.
A9: The template does not calculate subtest or composite (IQ and Index) scores. The examiner must use
A10: the SB 5 Manual to obtain these scores.
A12: The template does not incorporate either the Abbreviated Battery or the Change Score analysis.
A14: The Percentiles reported in the template are based upon a normal curve table and may not reflect the
A15: exact percentile reported in the SB 5 manual.
A17: The Confidence intervals are based upon a formula provided in the SB 5 manual and therefore
A18: do not always match the intervals provided by the SB 5 manual tables.

Sheet SB V Scores
B1: Stanford Binet Intelligence Scales Fifth Edition, Gale H. Roid © Riverside Publishing, 2003. All Rights Reserved
B2: Dumont-Willis SB5 Interpretive Worksheet
B3: Use the TAB key to navigate to cells requiring input | U3: =D12 -> 2003 | V3: =E12 -> 7 | W3: =F12 -> 29 | X3: =IF(Y4>Z3,U3-1,U3) -> 2003 | Y3: =IF(Y4>Z3,Z3+12,Z3) -> 7 | Z3: =IF(AA4>W3,V3-1,V3) -> 7 | AA3: =IF(AA4>W3,W3+30,W3) -> 29
B4: Name: | C4: Andre B | J4: Date Analyzed: | K4: =NOW() -> 2014-02-11T13:45:29.780 | P4: 3 | X4: =D13 -> 1995 | Y4: =E13 -> 5 | AA4: =F13 -> 16
X5: =X3-X4 -> 8 | Y5: =Y3-Y4 -> 2 | AA5: =AA3-AA4 -> 13 | AC5: =X5&" years, "&Y5&Y6&AA5&AA6 -> 8 years, 2 months13 days
B6: ID #: | E6: Examiner: | F6: RPD | H6: School/Agency: | T6: =FIND(" ",C4) -> 6 | U6: =MID(C4,1,T6-1) -> Andre | Y6: =IF(Y5=1," month"," months") -> months | AA6: =IF(AA5=1," day"," days") -> days
W7: 1 | X7: 2 | Z7: 4 | AA7: 5 | AB7: 6 | AC7: 7 | AD7: 8 | AE7: 9 | AF7: 10 | AG7: 11 | AH7: 12 | AI7: 13
H8: B | I8: Stanford | W8: 16 | X8: 18 | Y8: 20 | Z8: 25 | AA8: 30 | AB8: 35 | AC8: 45 | AD8: 55 | AE8: 65 | AF8: 70 | AG8: 75 | AH8: 80 | AI8: 85
I10: INET
D11: Year | E11: Month | F11: Day
C12: Date of Test: | D12: 2003 | E12: 7 | F12: 29 | H12: Intelligence Scale
C13: Date of Birth: | D13: 1995 | E13: 5 | F13: 16 | H13: Fifth Edition
C14: Age: | D14: =X5&" years" -> 8 years | E14: =Y5&Y6 -> 2 months | F14: =AA5&AA6 -> 13 days
B19: 1. Enter obtained Scaled Scores:
B20: Nonverbal (NV) Domain | J20: Nonverbal Sum of Scaled Scores | P20: Nonverbal (NV) | U20: Verbal (V)
D21: FR | E21: KN | F21: QR | G21: VS | H21: WM | P21: FR | Q21: KN | R21: QR | S21: VS | T21: WM | U21: FR | V21: KN | W21: QR | X21: VS | Y21: WM
C22: NV Scaled Score | D22: 4 | E22: 10 | F22: 10 | G22: 8 | H22: 4 | K22: = | L22: =SUM(D22:H22) -> 36 | P22: =D22 -> 4 | Q22: =E22 -> 10 | R22: =F22 -> 10 | S22: =G22 -> 8 | T22: =H22 -> 4 | U22: =D26 -> 8 | V22: =E26 -> 8 | W22: =F26 -> 7 | X22: =G26 -> 10 | Y22: =H26 -> 13
B24: Verbal (V) Domain | J24: Verbal Sum of Scaled Scores | P24: =IF(COUNT(D22:H22)<5,"",L22/5) -> 7.2 | Q24: =COUNT(D22:H22) -> 5
D25: FR | E25: KN | F25: QR | G25: VS | H25: WM | T25: nvmax | U25: nvmin | V25: nvscat | W25: vmax | X25: vmin | Y25: vsct | CI25: 1
C26: V Scaled Score | D26: 8 | E26: 8 | F26: 7 | G26: 10 | H26: 13 | K26: = | L26: =SUM(D26:H26) -> 46 | O26: =IF(CI25=1,90,95) -> 90 | P26: =IF(COUNT(D26:H26)<5,"",L26/5) -> 9.2 | Q26: =COUNT(D26:H26) -> 5 | T26: =MAX(P22:T22) -> 10 | U26: =MIN(P22:T22) -> 4 | V26: =ABS(T26-U26) -> 6 | W26: =MAX(U22:Y22) -> 13 | X26: =MIN(U22:Y22) -> 7 | Y26: =ABS(W26-X26) -> 6
Q27: =Q26+Q24 -> 10
B29: Sum of NV and V Scaled Scores | D29: FR | E29: KN | F29: QR | G29: VS | H29: WM
D30: =D22+D26 -> 12 | E30: =E22+E26 -> 18 | F30: =F22+F26 -> 17 | G30: =G22+G26 -> 18 | H30: =H22+H26 -> 17 | P30: =IF(Q27<10,"",SUM(D30:H30)/10) -> 8.2
P31: =IF(COUNT(D31:H31)<5,"",L31/5) -> 
B33: 2. Enter obtained Standard Scores:
D36: Sum of Scaled Scores | E36: Standard Score | F36: Percentile Rank | G36: =O26&"% Confidence Interval" -> 90% Confidence Interval | I36: Label
C37: Nonverbal IQ | D37: =L22 -> 36 | E37: 82 | F37: =IF(E37="","",LOOKUP(E37,B271:BG272)) -> 12 | G37: =IF(E37="","",S37&" - "&T37) -> 78 - 88 | J37: =IF(E37="","",LOOKUP(S37,IQClass)&" to "&LOOKUP(T37,IQClass)) -> Borderline Impaired to Low Average | O37: 0.95 | P37: =100+O37*(nviq-100) -> 82.9 | Q37: =15*SQRT((1-O37)*(O37)) -> 3.269174208 | R37: =IF($O$26=90,Q37*1.65,Q37*1.96) -> 5.394137443 | S37: =ROUND(P37-R37,0) -> 78 | T37: =ROUND(P37+R37,0) -> 88
C38: Verbal IQ | D38: =L26 -> 46 | E38: 95 | F38: =IF(E38="","",LOOKUP(E38,B271:BG272)) -> 37 | G38: =IF(E38="","",S38&" - "&T38) -> 90 - 100 | J38: =IF(E38="","",LOOKUP(S38,IQClass)&" to "&LOOKUP(T38,IQClass)) -> Average to Average | O38: 0.96 | P38: =100+O38*(viq-100) -> 95.2 | Q38: =15*SQRT((1-O38)*(O38)) -> 2.939387691 | R38: =IF($O$26=90,Q38*1.65,Q38*1.96) -> 4.849989691 | S38: =ROUND(P38-R38,0) -> 90 | T38: =ROUND(P38+R38,0) -> 100
C39: Full Scale IQ | D39: =D37+D38 -> 82 | E39: 88 | F39: =IF(E39="","",LOOKUP(E39,B271:BG272)) -> 21 | G39: =IF(E39="","",S39&" - "&T39) -> 85 - 92 | J39: =IF(E39="","",LOOKUP(S39,IQClass)&" to "&LOOKUP(T39,IQClass)) -> Low Average to Average | O39: 0.98 | P39: =100+O39*(fsiq-100) -> 88.24 | Q39: 2.1 | R39: 3.465 | S39: 85 | T39: 92
C41: Fluid Reasoning | D41: =D30 -> 12 | E41: 76 | F41: =IF(E41="","",LOOKUP(E41,B271:BG272)) -> 5 | G41: =IF(E41="","",S41&" - "&T41) -> 71 - 86 | J41: =IF(E41="","",LOOKUP(S41,IQClass)&" to "&LOOKUP(T41,IQClass)) -> Borderline Impaired to Low Average | O41: 0.9 | P41: =100+O41*(E41-100) -> 78.4 | Q41: 4.5 | R41: 7.425 | S41: 71 | T41: 86
C42: Knowledge | D42: =E30 -> 18 | E42: 94 | F42: =IF(E42="","",LOOKUP(E42,B271:BG272)) -> 34 | G42: =IF(E42="","",S42&" - "&T42) -> 88 - 101 | J42: =IF(E42="","",LOOKUP(S42,IQClass)&" to "&LOOKUP(T42,IQClass)) -> Low Average to Average | O42: 0.92 | P42: =100+O42*(E42-100) -> 94.48 | Q42: 4.06939799 | R42: 6.714506683 | S42: 88 | T42: 101
C43: Quantitative Reasoning | D43: =F30 -> 17 | E43: 92 | F43: =IF(E43="","",LOOKUP(E43,B271:BG272)) -> 30 | G43: =IF(E43="","",S43&" - "&T43) -> 86 - 99 | J43: =IF(E43="","",LOOKUP(S43,IQClass)&" to "&LOOKUP(T43,IQClass)) -> Low Average to Average | O43: 0.92 | P43: =100+O43*(E43-100) -> 92.64 | Q43: 4.06939799 | R43: 6.714506683 | S43: 86 | T43: 99
C44: Visual-Spatial Processing | D44: =G30 -> 18 | E44: 94 | F44: =IF(E44="","",LOOKUP(E44,B271:BG272)) -> 34 | G44: =IF(E44="","",S44&" - "&T44) -> 88 - 101 | J44: =IF(E44="","",LOOKUP(S44,IQClass)&" to "&LOOKUP(T44,IQClass)) -> Low Average to Average | O44: 0.92 | P44: =100+O44*(E44-100) -> 94.48 | Q44: 4.06939799 | R44: 6.714506683 | S44: 88 | T44: 101
C45: Working Memory | D45: =H30 -> 17 | E45: 91 | F45: =IF(E45="","",LOOKUP(E45,B271:BG272)) -> 27 | G45: =IF(E45="","",S45&" - "&T45) -> 85 - 99 | J45: =IF(E45="","",LOOKUP(S45,IQClass)&" to "&LOOKUP(T45,IQClass)) -> Low Average to Average | O45: 0.91 | P45: =100+O45*(E45-100) -> 91.81 | Q45: 4.292726406 | R45: 7.082998571 | S45: 85 | T45: 99
B49: SB V Interpretive Worksheet | O49: Nonverbal IQ | P49: Verbal IQ | Q49: Full Scale IQ | R49: Fluid Reasoning | S49: Knowledge | T49: Quantitative Reasoning | U49: Visual-Spatial Processing | V49: Working Memory
O50: =E37 -> 82 | P50: =E38 -> 95 | Q50: =E39 -> 88 | R50: =E41 -> 76 | S50: =E42 -> 94 | T50: =E43 -> 92 | U50: =E44 -> 94 | V50: =E45 -> 91
B51: 3. Is the NVIQ versus VIQ significantly different? | G51: =IF(OR(nviq="",viq=""),"",IF(E55>11, "YES, p = .01", IF(E55<9, "NO","YES, p = .05"))) -> YES, p = .01
H53: Significance
E54: Diff | F54: (p < .01) | G54: (p < .05) | I54: Normal
C55: ="NVIQ = "&nviq&" VIQ = "&viq -> NVIQ = 82 VIQ = 95 | E55: =IF(OR(nviq="",viq=""),"",ABS(nviq-viq)) -> 13 | F55: 12 or more | G55: 10 - 11 | I55: 0 - 8
B58: =IF(T129=0,V129,V130) -> Because there is a significant difference between the NVIQ and VIQ, examine possible reasons.
B61: 4. Is the NVIQ versus VIQ difference abnormally large? | G61: =IF(E64="","",IF(E64<G64,"NO","YES")) -> YES
E63: Diff | G63: Size of Difference needed for abnormality
C64: ="NVIQ ("&nviq&") VIQ ("&viq&")" -> NVIQ (82) VIQ (95) | E64: =E55 -> 13 | G64: 13
B67: =IF(T138=0,V138,V139) -> Because an abnormal difference was found, explain the abnormally large NV vs. V difference.
B71: 5. Is there an abnormal amount of NVIQ or VIQ scatter?
B73: A. Is there abnormal Nonverbal scatter? | H73: =IF(F76>8,"YES","NO") -> NO
D75: Difference | F75: Scatter | G75: Abnormal | H75: Normal
D76: ="High ("&T26&") - Low ("&U26&")" -> High (10) - Low (4) | F76: =V26 -> 6 | G76: 9 or more | H76: 0 - 8
B78: B. Is there abnormal Verbal scatter? | H78: =IF(F81>7,"YES","NO") -> NO
D80: Difference | F80: Scatter | G80: Abnormal | H80: Normal
D81: ="High ("&W26&") - Low ("&X26&")" -> High (13) - Low (7) | F81: =Y26 -> 6 | G81: 8 or more | H81: 0 - 7
B84: =IF(Q154=0,R154,R155) -> Because each answer to A and B was NO, the NVIQ versus VIQ discrepancy is interpretable.
B87: 6. Are the Factor index scores discrepant from each other? | H87: =IF(S109>0,"YES","NO") -> YES
D89: Differences between indexes
D90: Fluid Reasoning | E90: Knowledge | F90: Quantitative Reasoning | G90: Visual-Spatial Processing | H90: Working Memory
C91: Index score= | D91: =E41 -> 76 | E91: =E42 -> 94 | F91: =E43 -> 92 | G91: =E44 -> 94 | H91: =E45 -> 91
C92: Fluid Reasoning | E92: =D93 -> 18 | F92: =D94 -> 16 | G92: =D95 -> 18 | H92: =D96 -> 15
C93: Knowledge | D93: =ABS(D91-E91) -> 18 | F93: =E94 -> 2 | G93: =E95 -> 0 | H93: =E96 -> 3
C94: Quantitative Reasoning | D94: =ABS(D91-F91) -> 16 | E94: =ABS(E91-F91) -> 2 | G94: =F95 -> 2 | H94: =F96 -> 1
C95: Visual-Spatial Processing | D95: =ABS(D91-G91) -> 18 | E95: =ABS(E91-G91) -> 0 | F95: =ABS(F91-G91) -> 2 | H95: =G96 -> 3
C96: Working Memory | D96: =ABS(D91-H91) -> 15 | E96: =ABS(E91-H91) -> 3 | F96: =ABS(F91-H91) -> 1 | G96: =ABS(G91-H91) -> 3
O97: Fluid Reasoning | P97: Knowledge | Q97: Quantitative Reasoning | R97: Visual-Spatial Processing | S97: Working Memory | U97: Fluid Reasoning | V97: Knowledge | W97: Quantitative Reasoning | X97: Visual-Spatial Processing | Y97: Working Memory
E98: Abnormality (abn) | J98: Compare Significance with Abnormality
D99: Fluid Reasoning | E99: Knowledge | F99: Quantitative Reasoning | G99: Visual-Spatial Processing | H99: Working Memory | P99: 21 | Q99: 20 | R99: 20 | S99: 21 | V99: 21 | W99: 20 | X99: 20 | Y99: 21
E100: =IF(ABS(E92)>P99,"abn","") ->  | F100: =IF(ABS(F92)>Q99,"abn","") ->  | G100: =IF(ABS(G92)>R99,"abn","") ->  | H100: =IF(ABS(H92)>S99,"abn","") ->  | O100: 12.8 | Q100: 20 | R100: 20 | S100: 20 | U100: =IF($O$26=90,O100,(O100/1.65)*1.96) -> 12.8 | W100: 20 | X100: 20 | Y100: 20
C101: Knowledge | D101: =IF(ABS(D93)>O100,"sgn","") -> sgn | F101: =IF(ABS(F93)>Q100,"abn","") ->  | G101: =IF(ABS(G93)>R100,"abn","") ->  | H101: =IF(ABS(H93)>S100,"abn","") ->  | O101: 12.7 | P101: 12 | R101: 18 | S101: 19 | U101: 12.7 | V101: 12 | X101: 18 | Y101: 19
C102: Quantitative Reasoning | D102: =IF(ABS(D94)>O101,"sgn","") -> sgn | E102: =IF(ABS(E94)>P101,"sgn","") ->  | G102: =IF(ABS(G94)>R101,"abn","") ->  | H102: =IF(ABS(H94)>S101,"abn","") ->  | O102: 12.8 | P102: 12.2 | Q102: 12.1 | S102: 19 | U102: 12.8 | V102: 12.2 | W102: 12.1 | Y102: 19
C103: Visual-Spatial Processing | D103: =IF(ABS(D95)>O102,"sgn","") -> sgn | E103: =IF(ABS(E95)>P102,"sgn","") ->  | F103: =IF(ABS(F95)>Q102,"sgn","") ->  | O103: 13.1 | P103: 12.5 | Q103: 12.4 | R103: 12.5 | U103: 13.1 | V103: 12.5 | W103: 12.4 | X103: 12.5
C104: Working Memory | D104: =IF(ABS(D96)>O103,"sgn","") -> sgn | E104: =IF(ABS(E96)>P103,"sgn","") ->  | F104: =IF(ABS(F96)>Q103,"sgn","") ->  | G104: =IF(ABS(G96)>R103,"sgn","") ->  | O104: =IF(ABS(D93)>O100,1,"") -> 1 | Q104: =IF(ABS(Q96)>AB103,"*","") ->  | R104: =IF(ABS(R96)>AC103,"*","") -> 
D105: .05 Significance (sgn) | O105: =IF(ABS(D94)>O101,1,"") -> 1 | P105: =IF(ABS(E94)>P101,1,"") ->  | R105: =IF(ABS(R97)>AC104,"*","") -> 
O106: =IF(ABS(D95)>O102,1,"") -> 1 | P106: =IF(ABS(E95)>P102,1,"") ->  | Q106: =IF(ABS(F95)>Q102,1,"") -> 
B107: 7. Are there significant differences between the Nonverbal and Verbal domains? | J107: =IF(O187>0,"YES","NO") -> YES | O107: =IF(ABS(D96)>O103,1,"") -> 1 | P107: =IF(ABS(E96)>P103,1,"") ->  | Q107: =IF(ABS(F96)>Q103,1,"") ->  | R107: =IF(ABS(R99)>AC106,1,"") -> 1
D109: Nonverbal | E109: Verbal | F109: Difference | G109: Significance | O109: =SUM(O104:O108) -> 4 | P109: =SUM(P105:P108) -> 0 | Q109: =SUM(Q106:Q108) -> 0 | R109: =SUM(R107:R108) -> 1 | S109: =SUM(O109:R109) -> 5
C110: Fluid Reasoning | D110: =D123 -> 4 | E110: =D131 -> 8 | F110: =ABS(D110-E110) -> 4 | G110: =P182 -> NS
C111: Knowledge | D111: =D124 -> 10 | E111: =D132 -> 8 | F111: =ABS(D111-E111) -> 2 | G111: NS
C112: Quantitative Reasoning | D112: =D125 -> 10 | E112: =D133 -> 7 | F112: =ABS(D112-E112) -> 3 | G112: NS
C113: Visual-Spatial Processing | D113: =D126 -> 8 | E113: =D134 -> 10 | F113: =ABS(D113-E113) -> 2 | G113: NS
C114: Working Memory | D114: =D127 -> 4 | E114: =D135 -> 13 | F114: =ABS(D114-E114) -> 9 | G114: * | H114: Verbal WM greater than Nonverbal WM
B116: 8. Are there significant subtest strengths and weaknesses?
H120: Full Scale | J120: ="(x = "&P121&")" -> (x = 8.2) | O120: =P24 -> 7.2
D121: Nonverbal and Verbal Statistics | H121: Full Scale Statistics | O121: =P26 -> 9.2 | P121: =P30 -> 8.2
B122: Nonverbal | C122: ="(X = "&P24&")" -> (X = 7.2) | D122: SS | E122: Crit. Value | F122: Deviation | H122: Crit. Value | J122: Deviation
C123: Fluid Reasoning | D123: =IF(D22="","",D22) -> 4 | E123: 2.7 | F123: =IF(D123="","",(D123-$O$120)) -> -3.2 | G123: =IF(D123="","",IF(F123>E123,"s",IF(F123<-E123,"w"," "))) -> w | H123: 3.13 | J123: =IF(D123="","",(D123-$P$121)) -> -4.2 | K123: =IF(D123="","",IF(J123>H123,"s",IF(J123<-H123,"w"," "))) -> w
C124: Knowledge | D124: =IF(E22="","",E22) -> 10 | E124: 2.7 | F124: =IF(D124="","",(D124-$O$120)) -> 2.8 | G124: =IF(D124="","",IF(F124>E124,"s",IF(F124<-E124,"w"," "))) -> s | H124: 3.13 | J124: =IF(D124="","",(D124-$P$121)) -> 1.8 | K124: =IF(D124="","",IF(J124>H124,"s",IF(J124<-H124,"w"," "))) -> 
C125: Quantitative Reasoning | D125: =IF(F22="","",F22) -> 10 | E125: 2.63 | F125: =IF(D125="","",(D125-$O$120)) -> 2.8 | G125: =IF(D125="","",IF(F125>E125,"s",IF(F125<-E125,"w"," "))) -> s | H125: 3.04 | J125: =IF(D125="","",(D125-$P$121)) -> 1.8
C126: Visual-Spatial Processing | D126: =IF(G22="","",G22) -> 8 | E126: 2.6 | F126: =IF(D126="","",(D126-$O$120)) -> 0.8 | G126: =IF(D126="","",IF(F126>E126,"s",IF(F126<-E126,"w"," "))) ->  | H126: 2.99 | J126: =IF(D126="","",(D126-$P$121)) -> -0.2
C127: Working Memory | D127: =IF(H22="","",H22) -> 4 | E127: 2.51 | F127: =IF(D127="","",(D127-$O$120)) -> -3.2 | G127: =IF(D127="","",IF(F127>E127,"s",IF(F127<-E127,"w"," "))) -> w | H127: 2.87 | J127: =IF(D127="","",(D127-$P$121)) -> -4.2 | K127: w
B129: Verbal | J129: =IF(D129="","",(D129-$P$121)) ->  | T129: =IF(G51="NO",0,1) -> 1 | V129: Because there is no significant differences between the NVIQ and VIQ, explain the meaning of the scales not being significantly different.
C130: ="(X = "&P26&")" -> (X = 9.2) | V130: Because there is a significant difference between the NVIQ and VIQ, examine possible reasons.
C131: Fluid Reasoning | D131: =IF(D26="","",D26) -> 8 | E131: 2.69 | F131: =IF(D131="","",(D131-$O$121)) -> -1.2 | G131: =IF(D131="","",IF(F131>E131,"s",IF(F131<-E131,"w"," "))) ->  | H131: 3.13 | J131: -0.2 | K131: =IF(D131="","",IF(J131>H131,"s",IF(J131<-H131,"w"," "))) -> 
C132: Knowledge | D132: =IF(E26="","",E26) -> 8 | E132: 2.39 | F132: =IF(D132="","",(D132-$O$121)) -> -1.2 | G132: =IF(D132="","",IF(F132>E132,"s",IF(F132<-E132,"w"," "))) ->  | H132: 2.73 | J132: -0.2
C133: Quantitative Reasoning | D133: =IF(F26="","",F26) -> 7 | E133: 2.53 | F133: =IF(D133="","",(D133-$O$121)) -> -2.2 | G133: =IF(D133="","",IF(F133>E133,"s",IF(F133<-E133,"w"," "))) ->  | H133: 2.92 | J133: -1.2
C134: Visual-Spatial Processing | D134: =IF(G26="","",G26) -> 10 | E134: 2.5 | F134: =IF(D134="","",(D134-$O$121)) -> 0.8 | G134: =IF(D134="","",IF(F134>E134,"s",IF(F134<-E134,"w"," "))) ->  | H134: 2.87 | J134: 1.8
C135: Working Memory | D135: =IF(H26="","",H26) -> 13 | E135: 2.76 | F135: =IF(D135="","",(D135-$O$121)) -> 3.8 | G135: =IF(D135="","",IF(F135>E135,"s",IF(F135<-E135,"w"," "))) -> s | H135: 3.23 | J135: 4.8 | K135: s
D136: Note: "s" = "statistical strength" "w" = "statsitical weakness"
T138: =IF(G61="NO",0,1) -> 1 | V138: Because no abnormal difference was found, determine if the noted differences are interpretable.
V139: Because an abnormal difference was found, explain the abnormally large NV vs. V difference.
P153: =IF(H73="NO",0,1) -> 0
P154: =IF(H78="NO",0,1) -> 0 | Q154: =P153+P154 -> 0 | R154: Because each answer to A and B was NO, the NVIQ versus VIQ discrepancy is interpretable.
R155: Because an answer to either A or B was YES, the NVIQ versus VIQ discrepancy differences should probably not be interpreted.
O182: =IF(D110="","",IF(F110>4,1,"")) ->  | P182: =IF(O182=1,"*","NS") -> NS | Q182: =IF(O182="","",IF(D110>E110,"Nonverbal FS greater than Verbal FS",IF(E110>D110,"Verbal FS greater than Nonverbal FS",""))) -> 
O183: =IF(D111="","",IF(F111>4,1,"")) ->  | P183: =IF(O183=1,"*","NS") -> NS | Q183: =IF(O183="","",IF(D111>E111,"Nonverbal KN greater than Verbal KN",IF(E111>D111,"Verbal KN greater than Nonverbal KN",""))) -> 
O184: =IF(D112="","",IF(F112>4,1,"")) ->  | P184: =IF(O184=1,"*","NS") -> NS | Q184: =IF(O184="","",IF(D112>E112,"Nonverbal QR greater than Verbal QR",IF(E112>D112,"Verbal QR greater than Nonverbal QR",""))) -> 
O185: =IF(D113="","",IF(F113>4,1,"")) ->  | P185: =IF(O185=1,"*","NS") -> NS | Q185: =IF(O185="","",IF(D113>E113,"Nonverbal VS greater than Verbal VS",IF(E113>D113,"Verbal VS greater than Nonverbal VS",""))) -> 
O186: =IF(D114="","",IF(F114>4,1,"")) -> 1 | P186: =IF(O186=1,"*","NS") -> * | Q186: =IF(O186="","",IF(D114>E114,"Nonverbal WM greater than Verbal WM",IF(E114>D114,"Verbal WM greater than Nonverbal WM",""))) -> Verbal WM greater than Nonverbal WM
O187: =SUM(O182:O186) -> 1
A271: SS | B271: 40 | C271: 62 | D271: 68 | E271: 71 | F271: 73 | G271: 75 | H271: 77 | I271: 78 | J271: 79 | K271: 80 | L271: 81 | M271: 82 | N271: 83 | O271: 84 | P271: 85 | Q271: 86 | R271: 87 | S271: 88 | T271: 89 | U271: 90 | V271: 91 | W271: 92 | X271: 93 | Y271: 94 | Z271: 95 | AA271: 96 | AB271: 97 | AC271: 98 | AD271: 99 | AE271: 100 | AF271: 101 | AG271: 102 | AH271: 103 | AI271: 104 | AJ271: 105 | AK271: 106 | AL271: 107 | AM271: 108 | AN271: 109 | AO271: 110 | AP271: 111 | AQ271: 112 | AR271: 113 | AS271: 114 | AT271: 115 | AU271: 116 | AV271: 117 | AW271: 118 | AX271: 119 | AY271: 120 | AZ271: 121 | BA271: 122 | BB271: 123 | BC271: 124 | BD271: 126 | BE271: 129 | BF271: 131 | BG271: 133
A272: %ile | B272: 1 | C272: 1 | D272: 2 | E272: 3 | F272: 4 | G272: 5 | H272: 6 | I272: 7 | J272: 8 | K272: 9 | L272: 10 | M272: 12 | N272: 13 | O272: 14 | P272: 16 | Q272: 18 | R272: 19 | S272: 21 | T272: 23 | U272: 25 | V272: 27 | W272: 30 | X272: 32 | Y272: 34 | Z272: 37 | AA272: 39 | AB272: 42 | AC272: 45 | AD272: 47 | AE272: 50 | AF272: 53 | AG272: 55 | AH272: 58 | AI272: 61 | AJ272: 63 | AK272: 66 | AL272: 68 | AM272: 70 | AN272: 73 | AO272: 75 | AP272: 77 | AQ272: 79 | AR272: 81 | AS272: 82 | AT272: 84 | AU272: 86 | AV272: 87 | AW272: 88 | AX272: 90 | AY272: 91 | AZ272: 92 | BA272: 93 | BB272: 94 | BC272: 95 | BD272: 96 | BE272: 97 | BF272: 98 | BG272: 99
D273: 1 | E273: 55 | F273: 70 | G273: 80 | H273: 90 | I273: 110 | J273: 120 | K273: 130 | L273: 145
D274: Moderately Impaired | E274: Mildly Impaired | F274: Borderline Impaired | G274: Low Average | H274: Average | I274: High Average | J274: Superior | K274: Gifted | L274: Very Gifted
C275: vsc | D275: 46 | E275: 55 | F275: 67 | G275: 75 | H275: 86 | I275: 95 | J275: 106 | K275: 116 | L275: 127 | M275: 135 | N275: 147 | O275: 155
C276: vconf- | D276: -4 | E276: -4 | F276: -5 | G276: -5 | H276: -6 | I276: -6 | J276: -7 | K276: -7 | L276: -8 | M276: -8 | N276: -9 | O276: -9
C277: vconf+ | D277: 9 | E277: 8 | F277: 8 | G277: 7 | H277: 7 | I277: 6 | J277: 6 | K277: 5 | L277: 5 | M277: 4 | N277: 4 | O277: 3
C278: psc | D278: 45 | E278: 47 | F278: 55 | G278: 63 | H278: 72 | I278: 79 | J278: 88 | K278: 96 | L278: 105 | M278: 114 | N278: 123 | O278: 129 | P278: 140 | Q278: 146 | R278: 155
C279: pconf- | D279: -3 | E279: -4 | F279: -4 | G279: -5 | H279: -5 | I279: -6 | J279: -6 | K279: -7 | L279: -7 | M279: -8 | N279: -8 | O279: -9 | P279: -9 | Q279: -9 | R279: -9
C280: pconf+ | D280: 10 | E280: 10 | F280: 9 | G280: 9 | H280: 8 | I280: 8 | J280: 7 | K280: 7 | L280: 6 | M280: 6 | N280: 5 | O280: 5 | P280: 4 | Q280: 4 | R280: 3
C281: fssc | D281: 40 | E281: 48 | F281: 53 | G281: 82 | H281: 86 | I281: 112 | J281: 115 | K281: 119 | L281: 148 | M281: 153
C282: fsconf- | D282: -3 | E282: -3 | F282: -4 | G282: -4 | H282: -5 | I282: -5 | J282: -5 | K282: -6 | L282: -6 | M282: -7
C283: fsconf+ | D283: 7 | E283: 6 | F283: 6 | G283: 5 | H283: 5 | I283: 5 | J283: 4 | K283: 4 | L283: 3 | M283: 3
C284: psi | D284: 46 | E284: 49 | F284: 56 | G284: 60 | H284: 64 | I284: 68 | J284: 73 | K284: 75 | L284: 83 | M284: 85 | N284: 91 | O284: 94 | P284: 100 | Q284: 102 | R284: 110 | S284: 113 | T284: 119 | U284: 122 | V284: 128 | W284: 131 | X284: 137 | Y284: 140 | Z284: 145 | AA284: 150
C285: psi | D285: -3 | E285: -3 | F285: -4 | G285: -4 | H285: -5 | I285: -5 | J285: -6 | K285: -6 | L285: -7 | M285: -7 | N285: -8 | O285: -8 | P285: -9 | Q285: -9 | R285: -10 | S285: -10 | T285: -11 | U285: -11 | V285: -12 | W285: -12 | X285: -13 | Y285: -13 | Z285: -14 | AA285: -14
C286: psi | D286: 15 | E286: 14 | F286: 14 | G286: 13 | H286: 13 | I286: 12 | J286: 13 | K286: 11 | L286: 11 | M286: 10 | N286: 10 | O286: 9 | P286: 9 | Q286: 8 | R286: 8 | S286: 7 | T286: 7 | U286: 6 | V286: 6 | W286: 5 | X286: 5 | Y286: 4 | Z286: 4 | AA286: 3
C287: GLC | D287: 45 | E287: 50 | F287: 54 | G287: 63 | H287: 67 | I287: 75 | J287: 78 | K287: 86 | L287: 91 | M287: 100 | N287: 103 | O287: 113 | P287: 116 | Q287: 125 | R287: 128 | S287: 138 | T287: 141 | U287: 147 | V287: 152
C288: GLC | D288: -3 | E288: -4 | F288: -4 | G288: -5 | H288: -5 | I288: -6 | J288: -6 | K288: -7 | L288: -7 | M288: -8 | N288: -8 | O288: -9 | P288: -9 | Q288: -10 | R288: -10 | S288: -11 | T288: -11 | U288: -12 | V288: -12
C289: GLC | D289: 12 | E289: 12 | F289: 11 | G289: 11 | H289: 10 | I289: 10 | J289: 9 | K289: 9 | L289: 8 | M289: 8 | N289: 7 | O289: 7 | P289: 6 | Q289: 6 | R289: 5 | S289: 5 | T289: 4 | U289: 4 | V289: 3
C290: wmi | D290: 50 | E290: 55 | F290: 63 | G290: 73 | H290: 80 | I290: 88 | J290: 97 | K290: 106 | L290: 113 | M290: 124 | N290: 130 | O290: 139 | P290: 147
C291: wmi- | D291: -4 | E291: -4 | F291: -5 | G291: -5 | H291: -6 | I291: -6 | J291: -7 | K291: -7 | L291: -8 | M291: -8 | N291: -9 | O291: -9 | P291: -10
C292: wmi+ | D292: 10 | E292: 9 | F292: 9 | G292: 8 | H292: 8 | I292: 7 | J292: 7 | K292: 6 | L292: 6 | M292: 5 | N292: 5 | O292: 4 | P292: 4
C293: pssc | D293: 54 | E293: 57 | F293: 63 | G293: 71 | H293: 73 | I293: 79 | J293: 81 | K293: 88 | L293: 96 | M293: 99 | N293: 106 | O293: 114 | P293: 122 | Q293: 131 | R293: 140 | S293: 148
C294: psconf- | D294: -3 | E294: -4 | F294: -5 | G294: -5 | H294: -6 | I294: -6 | J294: -7 | K294: -8 | L294: -8 | M294: -9 | N294: -10 | O294: -11 | P294: -12 | Q294: -13 | R294: -14 | S294: -15
C295: psconf+ | D295: 14 | E295: 14 | F295: 13 | G295: 12 | H295: 12 | I295: 11 | J295: 11 | K295: 10 | L295: 9 | M295: 9 | N295: 8 | O295: 7 | P295: 6 | Q295: 5 | R295: 4 | S295: 3
A298: NV | B298: 5 | C298: 6 | D298: 7 | E298: 8 | F298: 9 | G298: 10 | H298: 11 | I298: 12 | J298: 13 | K298: 14 | L298: 15 | M298: 16 | N298: 17 | O298: 18 | P298: 19 | Q298: 20 | R298: 21 | S298: 22 | T298: 23 | U298: 24 | V298: 25 | W298: 26 | X298: 27 | Y298: 28 | Z298: 29 | AA298: 30 | AB298: 31 | AC298: 32 | AD298: 33 | AE298: 34 | AF298: 35 | AG298: 36 | AH298: 37 | AI298: 38 | AJ298: 39 | AK298: 40 | AL298: 41 | AM298: 42 | AN298: 43 | AO298: 44 | AP298: 45 | AQ298: 46 | AR298: 47 | AS298: 48 | AT298: 49 | AU298: 50 | AV298: 51 | AW298: 52 | AX298: 53 | AY298: 54 | AZ298: 55 | BA298: 56 | BB298: 57 | BC298: 58 | BD298: 59 | BE298: 60 | BF298: 61 | BG298: 62 | BH298: 63 | BI298: 64 | BJ298: 65 | BK298: 66 | BL298: 67 | BM298: 68 | BN298: 69 | BO298: 70 | BP298: 71 | BQ298: 72 | BR298: 73 | BS298: 74 | BT298: 75 | BU298: 76 | BV298: 77 | BW298: 78 | BX298: 79 | BY298: 80 | BZ298: 81 | CA298: 82 | CB298: 83 | CC298: 84 | CD298: 85 | CE298: 86 | CF298: 87 | CG298: 88 | CH298: 89 | CI298: 90 | CJ298: 91 | CK298: 92 | CL298: 93 | CM298: 94 | CN298: 95
B299: 42 | C299: 43 | D299: 44 | E299: 46 | F299: 47 | G299: 48 | H299: 50 | I299: 51 | J299: 52 | K299: 53 | L299: 55 | M299: 56 | N299: 57 | O299: 59 | P299: 60 | Q299: 61 | R299: 62 | S299: 64 | T299: 65 | U299: 66 | V299: 68 | W299: 69 | X299: 70 | Y299: 72 | Z299: 73 | AA299: 74 | AB299: 75 | AC299: 77 | AD299: 78 | AE299: 79 | AF299: 81 | AG299: 82 | AH299: 83 | AI299: 84 | AJ299: 86 | AK299: 87 | AL299: 88 | AM299: 90 | AN299: 91 | AO299: 92 | AP299: 93 | AQ299: 95 | AR299: 96 | AS299: 97 | AT299: 99 | AU299: 100 | AV299: 101 | AW299: 103 | AX299: 104 | AY299: 105 | AZ299: 106 | BA299: 108 | BB299: 109 | BC299: 110 | BD299: 112 | BE299: 113 | BF299: 114 | BG299: 115 | BH299: 117 | BI299: 118 | BJ299: 119 | BK299: 121 | BL299: 122 | BM299: 123 | BN299: 125 | BO299: 126 | BP299: 127 | BQ299: 128 | BR299: 130 | BS299: 131 | BT299: 132 | BU299: 134 | BV299: 135 | BW299: 136 | BX299: 137 | BY299: 139 | BZ299: 140 | CA299: 141 | CB299: 143 | CC299: 144 | CD299: 145 | CE299: 146 | CF299: 148 | CG299: 149 | CH299: 150 | CI299: 152 | CJ299: 153 | CK299: 154 | CL299: 156 | CM299: 157 | CN299: 158
A300: V | B300: 5 | C300: 6 | D300: 7 | E300: 8 | F300: 9 | G300: 10 | H300: 11 | I300: 12 | J300: 13 | K300: 14 | L300: 15 | M300: 16 | N300: 17 | O300: 18 | P300: 19 | Q300: 20 | R300: 21 | S300: 22 | T300: 23 | U300: 24 | V300: 25 | W300: 26 | X300: 27 | Y300: 28 | Z300: 29 | AA300: 30 | AB300: 31 | AC300: 32 | AD300: 33 | AE300: 34 | AF300: 35 | AG300: 36 | AH300: 37 | AI300: 38 | AJ300: 39 | AK300: 40 | AL300: 41 | AM300: 42 | AN300: 43 | AO300: 44 | AP300: 45 | AQ300: 46 | AR300: 47 | AS300: 48 | AT300: 49 | AU300: 50 | AV300: 51 | AW300: 52 | AX300: 53 | AY300: 54 | AZ300: 55 | BA300: 56 | BB300: 57 | BC300: 58 | BD300: 59 | BE300: 60 | BF300: 61 | BG300: 62 | BH300: 63 | BI300: 64 | BJ300: 65 | BK300: 66 | BL300: 67 | BM300: 68 | BN300: 69 | BO300: 70 | BP300: 71 | BQ300: 72 | BR300: 73 | BS300: 74 | BT300: 75 | BU300: 76 | BV300: 77 | BW300: 78 | BX300: 79 | BY300: 80 | BZ300: 81 | CA300: 82 | CB300: 83 | CC300: 84 | CD300: 85 | CE300: 86 | CF300: 87 | CG300: 88 | CH300: 89 | CI300: 90 | CJ300: 91 | CK300: 92 | CL300: 93 | CM300: 94 | CN300: 95
B301: 43 | C301: 44 | D301: 46 | E301: 47 | F301: 48 | G301: 49 | H301: 51 | I301: 52 | J301: 53 | K301: 54 | L301: 56 | M301: 57 | N301: 58 | O301: 59 | P301: 61 | Q301: 62 | R301: 63 | S301: 64 | T301: 66 | U301: 67 | V301: 68 | W301: 69 | X301: 71 | Y301: 72 | Z301: 73 | AA301: 75 | AB301: 76 | AC301: 77 | AD301: 78 | AE301: 80 | AF301: 81 | AG301: 82 | AH301: 83 | AI301: 85 | AJ301: 86 | AK301: 87 | AL301: 88 | AM301: 90 | AN301: 91 | AO301: 92 | AP301: 93 | AQ301: 95 | AR301: 96 | AS301: 97 | AT301: 99 | AU301: 100 | AV301: 101 | AW301: 102 | AX301: 103 | AY301: 105 | AZ301: 106 | BA301: 107 | BB301: 109 | BC301: 110 | BD301: 111 | BE301: 112 | BF301: 114 | BG301: 115 | BH301: 116 | BI301: 117 | BJ301: 119 | BK301: 120 | BL301: 121 | BM301: 122 | BN301: 124 | BO301: 125 | BP301: 126 | BQ301: 127 | BR301: 129 | BS301: 103 | BT301: 131 | BU301: 132 | BV301: 134 | BW301: 135 | BX301: 136 | BY301: 138 | BZ301: 139 | CA301: 140 | CB301: 141 | CC301: 143 | CD301: 144 | CE301: 145 | CF301: 146 | CG301: 148 | CH301: 149 | CI301: 150 | CJ301: 151 | CK301: 153 | CL301: 154 | CM301: 155 | CN301: 156
A302: FS | B302: 10 | C302: 11 | D302: 12 | E302: 13 | F302: 14 | G302: 15 | H302: 16 | I302: 17 | J302: 18 | K302: 19 | L302: 20 | M302: 21 | N302: 22 | O302: 23 | P302: 24 | Q302: 25 | R302: 26 | S302: 27 | T302: 28 | U302: 29 | V302: 30 | W302: 31 | X302: 32 | Y302: 33 | Z302: 34 | AA302: 35 | AB302: 36 | AC302: 37 | AD302: 38 | AE302: 39 | AF302: 40 | AG302: 41 | AH302: 42 | AI302: 43 | AJ302: 44 | AK302: 45 | AL302: 46 | AM302: 47 | AN302: 48 | AO302: 49 | AP302: 50 | AQ302: 51 | AR302: 52 | AS302: 53 | AT302: 54 | AU302: 55 | AV302: 56 | AW302: 57 | AX302: 58 | AY302: 59 | AZ302: 60 | BA302: 61 | BB302: 62 | BC302: 63 | BD302: 64 | BE302: 65 | BF302: 66 | BG302: 67 | BH302: 68 | BI302: 69 | BJ302: 70 | BK302: 71 | BL302: 72 | BM302: 73 | BN302: 74 | BO302: 75 | BP302: 76 | BQ302: 77 | BR302: 78 | BS302: 79 | BT302: 80 | BU302: 81 | BV302: 82 | BW302: 83 | BX302: 84 | BY302: 85 | BZ302: 86 | CA302: 87 | CB302: 88 | CC302: 89 | CD302: 90 | CE302: 91 | CF302: 92 | CG302: 93 | CH302: 94 | CI302: 95 | CJ302: 96 | CK302: 97 | CL302: 98 | CM302: 99 | CN302: 100 | CO302: 101 | CP302: 102 | CQ302: 103 | CR302: 104 | CS302: 105 | CT302: 106 | CU302: 107 | CV302: 108 | CW302: 109 | CX302: 110 | CY302: 111 | CZ302: 112 | DA302: 113 | DB302: 114 | DC302: 115 | DD302: 116 | DE302: 117 | DF302: 118 | DG302: 119 | DH302: 120 | DI302: 121 | DJ302: 122 | DK302: 123 | DL302: 124 | DM302: 125 | DN302: 126 | DO302: 127 | DP302: 128 | DQ302: 129 | DR302: 130 | DS302: 131 | DT302: 132 | DU302: 133 | DV302: 134 | DW302: 135 | DX302: 136 | DY302: 137 | DZ302: 138 | EA302: 139 | EB302: 140 | EC302: 141 | ED302: 142 | EE302: 143 | EF302: 144 | EG302: 145 | EH302: 146 | EI302: 147 | EJ302: 148 | EK302: 149 | EL302: 150 | EM302: 151 | EN302: 152 | EO302: 153 | EP302: 154 | EQ302: 155 | ER302: 156 | ES302: 157 | ET302: 158 | EU302: 159 | EV302: 160 | EW302: 161 | EX302: 162 | EY302: 163 | EZ302: 164 | FA302: 165 | FB302: 166 | FC302: 167 | FD302: 168 | FE302: 169 | FF302: 170 | FG302: 171 | FH302: 172 | FI302: 173 | FJ302: 174 | FK302: 175 | FL302: 176 | FM302: 177 | FN302: 178 | FO302: 179 | FP302: 180 | FQ302: 181 | FR302: 182 | FS302: 183 | FT302: 184 | FU302: 185 | FV302: 186 | FW302: 187 | FX302: 188 | FY302: 189 | FZ302: 190
B303: 40 | C303: 40 | D303: 41 | E303: 42 | F303: 42 | G303: 43 | H303: 44 | I303: 44 | J303: 45 | K303: 45 | L303: 46 | M303: 47 | N303: 48 | O303: 48 | P303: 49 | Q303: 50 | R303: 50 | S303: 51 | T303: 52 | U303: 52 | V303: 53 | W303: 54 | X303: 54 | Y303: 55 | Z303: 56 | AA303: 56 | AB303: 57 | AC303: 58 | AD303: 58 | AE303: 59 | AF303: 60 | AG303: 60 | AH303: 61 | AI303: 62 | AJ303: 62 | AK303: 63 | AL303: 64 | AM303: 64 | AN303: 65 | AO303: 66 | AP303: 66 | AQ303: 67 | AR303: 68 | AS303: 68 | AT303: 69 | AU303: 70 | AV303: 70 | AW303: 71 | AX303: 72 | AY303: 72 | AZ303: 73 | BA303: 74 | BB303: 74 | BC303: 75 | BD303: 76 | BE303: 76 | BF303: 77 | BG303: 78 | BH303: 78 | BI303: 79 | BJ303: 80 | BK303: 80 | BL303: 81 | BM303: 82 | BN303: 82 | BO303: 83 | BP303: 84 | BQ303: 84 | BR303: 85 | BS303: 86 | BT303: 86 | BU303: 87 | BV303: 88 | BW303: 88 | BX303: 89 | BY303: 90 | BZ303: 90 | CA303: 91 | CB303: 92 | CC303: 92 | CD303: 93 | CE303: 94 | CF303: 94 | CG303: 95 | CH303: 96 | CI303: 96 | CJ303: 97 | CK303: 98 | CL303: 98 | CM303: 99 | CN303: 100 | CO303: 100 | CP303: 101 | CQ303: 102 | CR303: 102 | CS303: 103 | CT303: 104 | CU303: 104 | CV303: 105 | CW303: 106 | CX303: 106 | CY303: 107 | CZ303: 108 | DA303: 108 | DB303: 109 | DC303: 110 | DD303: 110 | DE303: 111 | DF303: 112 | DG303: 112 | DH303: 113 | DI303: 114 | DJ303: 114 | DK303: 115 | DL303: 116 | DM303: 116 | DN303: 117 | DO303: 118 | DP303: 118 | DQ303: 119 | DR303: 120 | DS303: 120 | DT303: 121 | DU303: 122 | DV303: 122 | DW303: 123 | DX303: 124 | DY303: 124 | DZ303: 125 | EA303: 126 | EB303: 126 | EC303: 127 | ED303: 128 | EE303: 128 | EF303: 129 | EG303: 130 | EH303: 130 | EI303: 131 | EJ303: 132 | EK303: 132 | EL303: 133 | EM303: 134 | EN303: 134 | EO303: 135 | EP303: 136 | EQ303: 136 | ER303: 137 | ES303: 138 | ET303: 138 | EU303: 139 | EV303: 140 | EW303: 140 | EX303: 141 | EY303: 142 | EZ303: 142 | FA303: 143 | FB303: 144 | FC303: 144 | FD303: 145 | FE303: 146 | FF303: 146 | FG303: 147 | FH303: 148 | FI303: 148 | FJ303: 149 | FK303: 450 | FL303: 150 | FM303: 151 | FN303: 152 | FO303: 152 | FP303: 153 | FQ303: 154 | FR303: 154 | FS303: 155 | FT303: 156 | FU303: 156 | FV303: 157 | FW303: 158 | FX303: 158 | FY303: 159 | FZ303: 160
A305: FR | B305: 2 | C305: 3 | D305: 4 | E305: 5 | F305: 6 | G305: 7 | H305: 8 | I305: 9 | J305: 10 | K305: 11 | L305: 12 | M305: 13 | N305: 14 | O305: 15 | P305: 16 | Q305: 17 | R305: 18 | S305: 19 | T305: 20 | U305: 21 | V305: 22 | W305: 23 | X305: 24 | Y305: 25 | Z305: 26 | AA305: 27 | AB305: 28 | AC305: 29 | AD305: 30 | AE305: 31 | AF305: 32 | AG305: 33 | AH305: 34 | AI305: 35 | AJ305: 36 | AK305: 37 | AL305: 38
B306: 47 | C306: 50 | D306: 53 | E306: 56 | F306: 59 | G306: 62 | H306: 65 | I306: 68 | J306: 71 | K306: 73 | L306: 76 | M306: 79 | N306: 82 | O306: 85 | P306: 88 | Q306: 91 | R306: 94 | S306: 97 | T306: 100 | U306: 103 | V306: 106 | W306: 109 | X306: 112 | Y306: 115 | Z306: 118 | AA306: 121 | AB306: 123 | AC306: 126 | AD306: 129 | AE306: 132 | AF306: 135 | AG306: 138 | AH306: 141 | AI306: 144 | AJ306: 147 | AK306: 150 | AL306: 153
A307: Kn | B307: 2 | C307: 3 | D307: 4 | E307: 5 | F307: 6 | G307: 7 | H307: 8 | I307: 9 | J307: 10 | K307: 11 | L307: 12 | M307: 13 | N307: 14 | O307: 15 | P307: 16 | Q307: 17 | R307: 18 | S307: 19 | T307: 20 | U307: 21 | V307: 22 | W307: 23 | X307: 24 | Y307: 25 | Z307: 26 | AA307: 27 | AB307: 28 | AC307: 29 | AD307: 30 | AE307: 31 | AF307: 32 | AG307: 33 | AH307: 34 | AI307: 35 | AJ307: 36 | AK307: 37 | AL307: 38
B308: 49 | C308: 52 | D308: 55 | E308: 58 | F308: 60 | G308: 63 | H308: 66 | I308: 69 | J308: 72 | K308: 74 | L308: 77 | M308: 80 | N308: 83 | O308: 86 | P308: 89 | Q308: 91 | R308: 94 | S308: 97 | T308: 100 | U308: 103 | V308: 106 | W308: 108 | X308: 111 | Y308: 114 | Z308: 117 | AA308: 120 | AB308: 123 | AC308: 126 | AD308: 128 | AE308: 131 | AF308: 134 | AG308: 137 | AH308: 140 | AI308: 143 | AJ308: 145 | AK308: 148 | AL308: 151
A309: QR | B309: 2 | C309: 3 | D309: 4 | E309: 5 | F309: 6 | G309: 7 | H309: 8 | I309: 9 | J309: 10 | K309: 11 | L309: 12 | M309: 13 | N309: 14 | O309: 15 | P309: 16 | Q309: 17 | R309: 18 | S309: 19 | T309: 20 | U309: 21 | V309: 22 | W309: 23 | X309: 24 | Y309: 25 | Z309: 26 | AA309: 27 | AB309: 28 | AC309: 29 | AD309: 30 | AE309: 31 | AF309: 32 | AG309: 33 | AH309: 34 | AI309: 35 | AJ309: 36 | AK309: 37 | AL309: 38
B310: 50 | C310: 53 | D310: 56 | E310: 59 | F310: 61 | G310: 64 | H310: 68 | I310: 70 | J310: 72 | K310: 75 | L310: 78 | M310: 81 | N310: 83 | O310: 86 | P310: 89 | Q310: 92 | R310: 94 | S310: 97 | T310: 100 | U310: 103 | V310: 105 | W310: 108 | X310: 111 | Y310: 114 | Z310: 116 | AA310: 119 | AB310: 122 | AC310: 125 | AD310: 127 | AE310: 130 | AF310: 133 | AG310: 136 | AH310: 138 | AI310: 141 | AJ310: 144 | AK310: 147 | AL310: 149
A311: VS | B311: 2 | C311: 3 | D311: 4 | E311: 5 | F311: 6 | G311: 7 | H311: 8 | I311: 9 | J311: 10 | K311: 11 | L311: 12 | M311: 13 | N311: 14 | O311: 15 | P311: 16 | Q311: 17 | R311: 18 | S311: 19 | T311: 20 | U311: 21 | V311: 22 | W311: 23 | X311: 24 | Y311: 25 | Z311: 26 | AA311: 27 | AB311: 28 | AC311: 29 | AD311: 30 | AE311: 31 | AF311: 32 | AG311: 33 | AH311: 34 | AI311: 35 | AJ311: 36 | AK311: 37 | AL311: 38
B312: 48 | C312: 50 | D312: 53 | E312: 56 | F312: 59 | G312: 62 | H312: 65 | I312: 68 | J312: 71 | K312: 74 | L312: 77 | M312: 79 | N312: 82 | O312: 85 | P312: 88 | Q312: 91 | R312: 94 | S312: 97 | T312: 100 | U312: 103 | V312: 106 | W312: 108 | X312: 111 | Y312: 114 | Z312: 117 | AA312: 120 | AB312: 123 | AC312: 126 | AD312: 129 | AE312: 132 | AF312: 135 | AG312: 137 | AH312: 140 | AI312: 143 | AJ312: 146 | AK312: 149 | AL312: 152
A313: WM | B313: 2 | C313: 3 | D313: 4 | E313: 5 | F313: 6 | G313: 7 | H313: 8 | I313: 9 | J313: 10 | K313: 11 | L313: 12 | M313: 13 | N313: 14 | O313: 15 | P313: 16 | Q313: 17 | R313: 18 | S313: 19 | T313: 20 | U313: 21 | V313: 22 | W313: 23 | X313: 24 | Y313: 25 | Z313: 26 | AA313: 27 | AB313: 28 | AC313: 29 | AD313: 30 | AE313: 31 | AF313: 32 | AG313: 33 | AH313: 34 | AI313: 35 | AJ313: 36 | AK313: 37 | AL313: 38
B314: 48 | C314: 51 | D314: 54 | E314: 58 | F314: 60 | G314: 63 | H314: 65 | I314: 68 | J314: 71 | K314: 74 | L314: 77 | M314: 80 | N314: 83 | O314: 86 | P314: 89 | Q314: 91 | R314: 94 | S314: 97 | T314: 100 | U314: 103 | V314: 106 | W314: 109 | X314: 112 | Y314: 115 | Z314: 117 | AA314: 120 | AB314: 123 | AC314: 126 | AD314: 129 | AE314: 132 | AF314: 135 | AG314: 138 | AH314: 141 | AI314: 143 | AJ314: 146 | AK314: 149 | AL314: 152

Sheet Composite Graph
A40: Nonverbal IQ | B40: Verbal IQ | C40: Full Scale IQ | D40: Fluid Reasoning | E40: Knowledge | F40: Quantitative Reasoning | G40: Visual-Spatial Processing | H40: Working Memory
A41: =nviq -> 82 | B41: =viq -> 95 | C41: =fsiq -> 88 | D41: ='SB V Scores'!E41 -> 76 | E41: ='SB V Scores'!E42 -> 94 | F41: ='SB V Scores'!E43 -> 92 | G41: ='SB V Scores'!E44 -> 94 | H41: ='SB V Scores'!E45 -> 91

Sheet Subtest Graph
A40: FR | B40: KN | C40: QR | D40: VS | E40: WM | F40: FR | G40: KN | H40: QR | I40: VS | J40: WM
A41: ='SB V Scores'!P22 -> 4 | B41: ='SB V Scores'!Q22 -> 10 | C41: ='SB V Scores'!R22 -> 10 | D41: ='SB V Scores'!S22 -> 8 | E41: ='SB V Scores'!T22 -> 4 | F41: ='SB V Scores'!U22 -> 8 | G41: ='SB V Scores'!V22 -> 8 | H41: ='SB V Scores'!W22 -> 7 | I41: ='SB V Scores'!X22 -> 10 | J41: ='SB V Scores'!Y22 -> 13
A42: FR | B42: KN | C42: QR | D42: VS | E42: WM | F42: FR | G42: KN | H42: QR | I42: VS | J42: WM

Sheet SB V vs WJ III Ach
B1: Stanford Binet Intelligence Scales Fifth Edition, Gale H. Roid © Riverside Publishing, 2003. All Rights Reserved
B2: WJ III Test and Cluster Scores Predicted by the SB5 FSIQ, NVIQ, or VIQ Scores
T3: 0 | U3: 0.67 | V3: 1.04 | W3: 1.28 | X3: 1.34 | Y3: 1.14 | Z3: 1.48 | AA3: 1.56 | AB3: 1.64 | AC3: 1.75 | AD3: 1.88 | AE3: 2.05 | AF3: 2.33 | AG3: 2.57
B4: WJ III Achievement Predicted By | R4: 2 | S4: =IF(R4=TRUE,1,0) -> 0
S5: =IF(R5=TRUE,1,0) -> 0
S6: =IF(R6=TRUE,1,0) -> 0 | T6: 50 | U6: 25 | V6: 15 | W6: 10 | X6: 9 | Y6: 8 | Z6: 7 | AA6: 6 | AB6: 5 | AC6: 4 | AD6: 3 | AE6: 2 | AF6: 1 | AG6: <1
S7: =R4 -> 2
J9: Approx. Frequency | T9: 7 | U9: 7 | V9: 7 | X9: 9 | Y9: 9 | Z9: 9
D10: WJ III | F10: Predicted Score | G10: Diff | H10: Discrepancy SD (+ or -) | I10: .05 Sign | T10: 12 | U10: 12 | V10: 12 | X10: 15 | Y10: 15 | Z10: 15
B11: LWI | D11: 103 | F11: =IF(D11="","",CHOOSE($S$7,T29,Y29,AD29)) -> 90.28 | G11: =IF(D11="","",CHOOSE($S$7,U29,Z29,AE29)) -> 12.72 | H11: =IF(D11="","",CHOOSE($S$7,V29,AA29,AF29)) -> 1.007526728 | I11: =IF(D11="","",CHOOSE($S$7,W29,AB29,AG29)) -> sgn | J11: =IF(D11="","",CHOOSE($S$7,X29,AC29,AH29)) -> 25 | T11: 10 | U11: 10 | V11: 10 | X11: 12 | Y11: 12 | Z11: 12
B12: Und Dir | F12: =IF(D12="","",CHOOSE($S$7,T30,Y30,AD30)) ->  | G12: =IF(D12="","",CHOOSE($S$7,U30,Z30,AE30)) ->  | H12: =IF(D12="","",CHOOSE($S$7,V30,AA30,AF30)) ->  | I12: =IF(D12="","",CHOOSE($S$7,W30,AB30,AG30)) ->  | J12: =IF(D12="","",CHOOSE($S$7,X30,AC30,AH30)) ->  | T12: 13 | U12: 13 | V12: 13 | X12: 9 | Y12: 9 | Z12: 9
B13: Calc | D13: 80 | F13: =IF(D13="","",CHOOSE($S$7,T31,Y31,AD31)) -> 89.2 | G13: -9.2 | H13: -0.7666666667 | J13: 25 | T13: 10 | U13: 10 | V13: 10 | X13: 11 | Y13: 12 | Z13: 12
B14: Math Fl | D14: 79 | F14: 92.26 | G14: -13.26 | H14: -0.9791445669 | I14: sgn | J14: 25 | T14: 8 | U14: 9 | V14: 9 | X14: 13 | Y14: 14 | Z14: 13
B15: Wrt Fl | T15: 9 | U15: 9 | V15: 9 | X15: 8 | Y15: 8 | Z15: 8
B16: Pass Comp | D16: 95 | F16: 88.48 | G16: 6.52 | H16: 0.5656960708 | J16: 50 | T16: 11 | U16: 11 | V16: 11 | X16: 11 | Y16: 11 | Z16: 11
B17: App Prob | D17: 89 | F17: 89.2 | G17: -0.2 | H17: -0.01666666667 | J17: 50 | T17: 9 | U17: 9 | V17: 9 | X17: 12 | Y17: 12 | Z17: 12
B18: Wrt Smpl | D18: 96 | F18: 91.18 | G18: 4.82 | H18: 0.3686188645 | J18: 50 | T18: 15 | U18: 15 | V18: 15 | X18: 13 | Y18: 13 | Z18: 13
B19: Wrd Att | D19: 99 | F19: 93.16 | G19: 5.84 | H19: 0.4209070501 | J19: 50 | T19: 10 | U19: 10 | V19: 10 | X19: 10 | Y19: 11 | Z19: 11
B20: Pic Voc | T20: 10 | U20: 10 | V20: 10 | X20: 9 | Y20: 9 | Z20: 9
B21: Rdg Voc | T21: 6 | U21: 7 | V21: 6 | X21: 8 | Y21: 8 | Z21: 8
B22: Quant Con | D22: 88 | F22: 88.12 | G22: -0.12 | H22: -0.01064869736 | J22: 50 | T22: 8 | U22: 9 | V22: 8 | X22: 10 | Y22: 10 | Z22: 10
F23: =IF(D23="","",CHOOSE($S$7,T41,Y41,AD41)) ->  | G23: =IF(D23="","",CHOOSE($S$7,U41,Z41,AE41)) ->  | T23: 7 | U23: 8 | V23: 7 | X23: 7 | Y23: 7 | Z23: 7
B24: Bsc Rdg Skills | D24: 95 | F24: 90.82 | G24: 4.18 | H24: 0.3239653103 | J24: 50 | T24: 9 | U24: 9 | V24: 9 | X24: 9 | Y24: 9 | Z24: 9
B25: Rdg Comp. | T25: 7 | U25: 8 | V25: 8 | X25: 7 | Y25: 8 | Z25: 7
B26: Brd Math | D26: 84 | F26: 88.48 | G26: -4.48 | H26: -0.3886991407 | J26: 50 | T26: 9 | U26: 9 | V26: 9 | X26: 10 | Y26: 10 | Z26: 10
B27: Math Calc. | T27: 6 | U27: 7 | V27: 7 | X27: 7 | Y27: 8 | Z27: 8
B28: Math Rsn | T28: FSIQ | U28: Diff | V28: Discrepancy SD (+ or -) | W28: .05 Sign | Y28: NVIQ | Z28: Diff | AB28: .05 Sign | AD28: VIQ | AE28: Diff | AG28: .05 Sign
B29: Written Expr | T29: =IF(fsiq="","",0.57*(fsiq-100)+100) -> 93.16 | U29: =D11-T29 -> 9.84 | V29: =U29/(15*SQRT(1-(0.54)^2)) -> 0.7794074687 | W29: =IF(ABS(U29)>IF(agey>11,X9,T9),"sgn","") -> sgn | X29: =LOOKUP(ABS(V29),$T$3:$AG$6) -> 25 | Y29: =IF(nviq="","",0.54*(nviq-100)+100) -> 90.28 | Z29: =D11-Y29 -> 12.72 | AA29: =Z29/(15*SQRT(1-(0.54)^2)) -> 1.007526728 | AB29: =IF(ABS(Z29)>IF(agey>11,Y9,U9),"sgn","") -> sgn | AC29: =LOOKUP(ABS(AA29),$T$3:$AG$6) -> 25 | AD29: =IF(viq="","",0.54*(viq-100)+100) -> 97.3 | AE29: =D11-AD29 -> 5.7 | AF29: =AE29/(15*SQRT(1-(0.54)^2)) -> 0.4514860337 | AG29: =IF(ABS(AE29)>IF(agey>11,Z9,V9),"sgn","") ->  | AH29: =LOOKUP(ABS(AF29),$T$3:$AG$6) -> 50
B30: Acad Appl | T30: =IF(fsiq="","",0.5*(fsiq-100)+100) -> 94 | U30: -94 | V30: =U30/(15*SQRT(1-(0.5)^2)) -> -7.236123374 | W30: sgn | X30: =LOOKUP(ABS(V30),$T$3:$AG$6) -> <1 | Y30: =IF(nviq="","",0.47*(nviq-100)+100) -> 91.54 | Z30: -91.54 | AA30: =Z30/(15*SQRT(1-(0.47)^2)) -> -6.913899253 | AB30: sgn | AC30: =LOOKUP(ABS(AA30),$T$3:$AG$6) -> <1 | AD30: =IF(viq="","",0.5*(viq-100)+100) -> 97.5 | AE30: -97.5 | AF30: =AE30/(15*SQRT(1-(0.5)^2)) -> -7.505553499 | AG30: sgn | AH30: =LOOKUP(ABS(AF30),$T$3:$AG$6) -> <1
T31: =IF(fsiq="","",0.64*(fsiq-100)+100) -> 92.32 | U31: -12.32 | V31: =U31/(15*SQRT(1-(0.64)^2)) -> -1.068922637 | W31: sgn | X31: 15 | Y31: =IF(nviq="","",0.6*(nviq-100)+100) -> 89.2 | Z31: -9.2 | AA31: =Z31/(15*SQRT(1-(0.6)^2)) -> -0.7666666667 | AC31: 25 | AD31: =IF(viq="","",0.61*(viq-100)+100) -> 96.95 | AE31: -16.95 | AF31: =AE31/(15*SQRT(1-(0.61)^2)) -> -1.426044907 | AG31: sgn | AH31: 8
T32: =IF(fsiq="","",0.44*(fsiq-100)+100) -> 94.72 | U32: -15.72 | V32: =U32/(15*SQRT(1-(0.44)^2)) -> -1.167040756 | W32: sgn | X32: 15 | Y32: =IF(nviq="","",0.43*(nviq-100)+100) -> 92.26 | Z32: -13.26 | AA32: =Z32/(15*SQRT(1-(0.43)^2)) -> -0.9791445669 | AB32: sgn | AC32: 25 | AD32: =IF(viq="","",0.42*(viq-100)+100) -> 97.9 | AE32: -18.9 | AF32: =AE32/(15*SQRT(1-(0.42)^2)) -> -1.388392875 | AG32: sgn | AH32: 8
T33: =IF(fsiq="","",0.5*(fsiq-100)+100) -> 94 | U33: -94 | V33: =U33/(15*SQRT(1-(0.5)^2)) -> -7.236123374 | W33: sgn | X33: <1 | Y33: =IF(nviq="","",0.5*(nviq-100)+100) -> 91 | Z33: -91 | AA33: =Z33/(15*SQRT(1-(0.5)^2)) -> -7.005183266 | AB33: sgn | AC33: <1 | AD33: =IF(viq="","",0.44*(viq-100)+100) -> 97.8 | AE33: -97.8 | AF33: =AE33/(15*SQRT(1-(0.44)^2)) -> -7.260597072 | AG33: sgn | AH33: <1
T34: =IF(fsiq="","",0.68*(fsiq-100)+100) -> 91.84 | U34: 3.16 | V34: =U34/(15*SQRT(1-(0.68)^2)) -> 0.2873202221 | X34: 50 | Y34: =IF(nviq="","",0.64*(nviq-100)+100) -> 88.48 | Z34: 6.52 | AA34: =Z34/(15*SQRT(1-(0.64)^2)) -> 0.5656960708 | AC34: 50 | AD34: =IF(viq="","",0.64*(viq-100)+100) -> 96.8 | AE34: -1.8 | AF34: =AE34/(15*SQRT(1-(0.64)^2)) -> -0.1561737619 | AH34: 50
T35: =IF(fsiq="","",0.64*(fsiq-100)+100) -> 92.32 | U35: -3.32 | V35: =U35/(15*SQRT(1-(0.64)^2)) -> -0.2880538275 | X35: 50 | Y35: =IF(nviq="","",0.6*(nviq-100)+100) -> 89.2 | Z35: -0.2 | AA35: =Z35/(15*SQRT(1-(0.6)^2)) -> -0.01666666667 | AC35: 50 | AD35: =IF(viq="","",0.62*(viq-100)+100) -> 96.9 | AE35: -7.9 | AF35: =AE35/(15*SQRT(1-(0.62)^2)) -> -0.6712534435 | AH35: 25
T36: =IF(fsiq="","",0.53*(fsiq-100)+100) -> 93.64 | U36: 2.36 | V36: =U36/(15*SQRT(1-(0.53)^2)) -> 0.1855351072 | X36: 50 | Y36: =IF(nviq="","",0.49*(nviq-100)+100) -> 91.18 | Z36: 4.82 | AA36: =Z36/(15*SQRT(1-(0.49)^2)) -> 0.3686188645 | AC36: 50 | AD36: =IF(viq="","",0.5*(viq-100)+100) -> 97.5 | AE36: -1.5 | AF36: =AE36/(15*SQRT(1-(0.5)^2)) -> -0.1154700538 | AH36: 50
T37: =IF(fsiq="","",0.4*(fsiq-100)+100) -> 95.2 | U37: 3.8 | V37: =U37/(15*SQRT(1-(0.4)^2)) -> 0.2764093276 | X37: 50 | Y37: =IF(nviq="","",0.38*(nviq-100)+100) -> 93.16 | Z37: 5.84 | AA37: =Z37/(15*SQRT(1-(0.38)^2)) -> 0.4209070501 | AC37: 50 | AD37: =IF(viq="","",0.38*(viq-100)+100) -> 98.1 | AE37: 0.9 | AF37: =AE37/(15*SQRT(1-(0.38)^2)) -> 0.06486581251 | AH37: 50
T38: =IF(fsiq="","",0.57*(fsiq-100)+100) -> 93.16 | U38: -93.16 | V38: =U38/(15*SQRT(1-(0.57)^2)) -> -7.558822842 | W38: sgn | X38: <1 | Y38: =IF(nviq="","",0.51*(nviq-100)+100) -> 90.82 | Z38: -90.82 | AA38: =Z38/(15*SQRT(1-(0.51)^2)) -> -7.03888265 | AB38: sgn | AC38: <1 | AD38: =IF(viq="","",0.57*(viq-100)+100) -> 97.15 | AE38: -97.15 | AF38: =AE38/(15*SQRT(1-(0.57)^2)) -> -7.882563752 | AG38: sgn | AH38: <1
T39: =IF(fsiq="","",0.68*(fsiq-100)+100) -> 91.84 | U39: -91.84 | V39: =U39/(15*SQRT(1-(0.68)^2)) -> -8.350471266 | W39: sgn | X39: <1 | Y39: =IF(nviq="","",0.62*(nviq-100)+100) -> 88.84 | Z39: -88.84 | AA39: =Z39/(15*SQRT(1-(0.62)^2)) -> -7.548627332 | AB39: sgn | AC39: <1 | AD39: =IF(viq="","",0.65*(viq-100)+100) -> 96.75 | AE39: -96.75 | AF39: =AE39/(15*SQRT(1-(0.65)^2)) -> -8.487576865 | AG39: sgn | AH39: <1
T40: =IF(fsiq="","",0.7*(fsiq-100)+100) -> 91.6 | U40: -3.6 | V40: =U40/(15*SQRT(1-(0.7)^2)) -> -0.3360672202 | X40: 50 | Y40: =IF(nviq="","",0.66*(nviq-100)+100) -> 88.12 | Z40: -0.12 | AA40: =Z40/(15*SQRT(1-(0.66)^2)) -> -0.01064869736 | AC40: 50 | AD40: =IF(viq="","",0.67*(viq-100)+100) -> 96.65 | AE40: -8.65 | AF40: =AE40/(15*SQRT(1-(0.67)^2)) -> -0.776800762 | AH40: 25
W41: =IF(ABS(U41)>IF(agey>11,X21,T21),"*","") ->  | AG41: =IF(ABS(AE41)>IF(agey>11,Z21,V21),"*","") -> 
T42: =IF(fsiq="","",0.54*(fsiq-100)+100) -> 93.52 | U42: =D24-T42 -> 1.48 | V42: =U42/(15*SQRT(1-(0.54)^2)) -> 0.1172279526 | W42: =IF(ABS(U42)>IF(agey>11,X21,T21),"sgn","") ->  | X42: 50 | Y42: =IF(nviq="","",0.51*(nviq-100)+100) -> 90.82 | Z42: =D24-Y42 -> 4.18 | AA42: =Z42/(15*SQRT(1-(0.51)^2)) -> 0.3239653103 | AB42: =IF(ABS(Z42)>IF(agey>11,Y21,U21),"sgn","") ->  | AC42: 50 | AD42: =IF(viq="","",0.51*(viq-100)+100) -> 97.45 | AE42: =D24-AD42 -> -2.45 | AF42: =AE42/(15*SQRT(1-(0.51)^2)) -> -0.1898839737 | AG42: =IF(ABS(AE42)>IF(agey>11,Z21,V21),"sgn","") ->  | AH42: 50
T43: =IF(fsiq="","",0.75*(fsiq-100)+100) -> 91 | U43: -91 | V43: =U43/(15*SQRT(1-(0.75)^2)) -> -9.171937878 | W43: sgn | X43: <1 | Y43: =IF(nviq="","",0.71*(nviq-100)+100) -> 87.22 | Z43: -87.22 | AA43: =Z43/(15*SQRT(1-(0.71)^2)) -> -8.257104275 | AB43: sgn | AC43: <1 | AD43: =IF(viq="","",0.71*(viq-100)+100) -> 96.45 | AE43: -96.45 | AF43: =AE43/(15*SQRT(1-(0.71)^2)) -> -9.130906986 | AG43: sgn | AH43: <1
T44: =IF(fsiq="","",0.66*(fsiq-100)+100) -> 92.08 | U44: -8.08 | V44: =U44/(15*SQRT(1-(0.68)^2)) -> -0.7346668971 | W44: sgn | X44: 25 | Y44: =IF(nviq="","",0.64*(nviq-100)+100) -> 88.48 | Z44: -4.48 | AA44: =Z44/(15*SQRT(1-(0.64)^2)) -> -0.3886991407 | AC44: 50 | AD44: =IF(viq="","",0.66*(viq-100)+100) -> 96.7 | AE44: -12.7 | AF44: =AE44/(15*SQRT(1-(0.68)^2)) -> -1.154736336 | AG44: sgn | AH44: 15
T45: =IF(fsiq="","",0.63*(fsiq-100)+100) -> 92.44 | U45: -92.44 | V45: =U45/(15*SQRT(1-(0.63)^2)) -> -7.935494839 | W45: sgn | X45: <1 | Y45: =IF(nviq="","",0.6*(nviq-100)+100) -> 89.2 | Z45: -89.2 | AA45: =Z45/(15*SQRT(1-(0.6)^2)) -> -7.433333333 | AB45: sgn | AC45: <1 | AD45: =IF(viq="","",0.6*(viq-100)+100) -> 97 | AE45: -97 | AF45: =AE45/(15*SQRT(1-(0.6)^2)) -> -8.083333333 | AG45: sgn | AH45: <1
T46: =IF(fsiq="","",0.72*(fsiq-100)+100) -> 91.36 | U46: -91.36 | V46: =U46/(15*SQRT(1-(0.72)^2)) -> -8.77650476 | W46: sgn | X46: <1 | Y46: =IF(nviq="","",0.68*(nviq-100)+100) -> 87.76 | Z46: -87.76 | AA46: =Z46/(15*SQRT(1-(0.68)^2)) -> -7.979500853 | AB46: sgn | AC46: <1 | AD46: =IF(viq="","",0.69*(viq-100)+100) -> 96.55 | AE46: -96.55 | AF46: =AE46/(15*SQRT(1-(0.69)^2)) -> -8.892765082 | AG46: sgn | AH46: <1
T47: =IF(fsiq="","",0.59*(fsiq-100)+100) -> 92.92 | U47: -92.92 | V47: =U47/(15*SQRT(1-(0.59)^2)) -> -7.672333131 | W47: sgn | X47: <1 | Y47: =IF(nviq="","",0.58*(nviq-100)+100) -> 89.56 | Z47: -89.56 | AA47: =Z47/(15*SQRT(1-(0.58)^2)) -> -7.329420477 | AB47: sgn | AC47: <1 | AD47: =IF(viq="","",0.53*(viq-100)+100) -> 97.35 | AE47: -97.35 | AF47: =AE47/(15*SQRT(1-(0.53)^2)) -> -7.653323173 | AG47: sgn | AH47: <1
T48: =IF(fsiq="","",0.75*(fsiq-100)+100) -> 91 | U48: -91 | V48: =U48/(15*SQRT(1-(0.75)^2)) -> -9.171937878 | W48: sgn | X48: <1 | Y48: =IF(nviq="","",0.71*(nviq-100)+100) -> 87.22 | Z48: -87.22 | AA48: =Z48/(15*SQRT(1-(0.71)^2)) -> -8.257104275 | AB48: sgn | AC48: <1 | AD48: =IF(viq="","",0.71*(viq-100)+100) -> 96.45 | AE48: -96.45 | AF48: =AE48/(15*SQRT(1-(0.71)^2)) -> -9.130906986 | AG48: sgn | AH48: <1
U50: =D10 -> WJ III | V50: =F10 -> Predicted Score
T51: =B11 -> LWI | U51: =D11 -> 103 | V51: =F11 -> 90.28
T52: =B12 -> Und Dir | U52: =D12 -> 0 | V52: =F12 -> 
T53: Calc | U53: 80 | V53: 89.2
T54: Math Fl | U54: 79 | V54: 92.26
T55: Wrt Fl | U55: 0
T56: Pass Comp | U56: 95 | V56: 88.48
T57: App Prob | U57: 89 | V57: 89.2
T58: Wrt Smpl | U58: 96 | V58: 91.18
T59: Wrd Att | U59: 99 | V59: 93.16
T60: Pic Voc | U60: 0
T61: Rdg Voc | U61: 0
T62: Quant Con | U62: 88 | V62: 88.12
T64: Bsc Rdg Skills | U64: 95 | V64: 90.82
T65: Rdg Comp. | U65: 0
T66: Brd Math | U66: 84 | V66: 88.48
T67: Math Calc. | U67: 0
T68: Math Rsn | U68: 0
T69: Written Expr | U69: 0
T70: Acad Appl | U70: 0

Sheet SB V-WJ III Ach Graph
S3: 0 | T3: 0.67 | U3: 1.04 | V3: 1.28 | W3: 1.34 | X3: 1.14 | Y3: 1.48 | Z3: 1.56 | AA3: 1.64 | AB3: 1.75 | AC3: 1.88 | AD3: 2.05 | AE3: 2.33 | AF3: 2.57
Q4: 1 | R4: =IF(Q4=TRUE,1,0) -> 0
R5: =IF(Q5=TRUE,1,0) -> 0
R6: =IF(Q6=TRUE,1,0) -> 0 | S6: 50 | T6: 25 | U6: 15 | V6: 10 | W6: 9 | X6: 8 | Y6: 7 | Z6: 6 | AA6: 5 | AB6: 4 | AC6: 3 | AD6: 2 | AE6: 1 | AF6: <1
R7: =Q4 -> 1
S9: 7 | T9: 7 | U9: 7 | W9: 9 | X9: 9 | Y9: 9
S10: 12 | T10: 12 | U10: 12 | W10: 15 | X10: 15 | Y10: 15
S11: 10 | T11: 10 | U11: 10 | W11: 12 | X11: 12 | Y11: 12
S12: 13 | T12: 13 | U12: 13 | W12: 9 | X12: 9 | Y12: 9
S13: 10 | T13: 10 | U13: 10 | W13: 11 | X13: 12 | Y13: 12
S14: 8 | T14: 9 | U14: 9 | W14: 13 | X14: 14 | Y14: 13
S15: 9 | T15: 9 | U15: 9 | W15: 8 | X15: 8 | Y15: 8
S16: 11 | T16: 11 | U16: 11 | W16: 11 | X16: 11 | Y16: 11
S17: 9 | T17: 9 | U17: 9 | W17: 12 | X17: 12 | Y17: 12
S18: 15 | T18: 15 | U18: 15 | W18: 13 | X18: 13 | Y18: 13
S19: 10 | T19: 10 | U19: 10 | W19: 10 | X19: 11 | Y19: 11
S20: 10 | T20: 10 | U20: 10 | W20: 9 | X20: 9 | Y20: 9
S21: 6 | T21: 7 | U21: 6 | W21: 8 | X21: 8 | Y21: 8
S22: 8 | T22: 9 | U22: 8 | W22: 10 | X22: 10 | Y22: 10
S23: 7 | T23: 8 | U23: 7 | W23: 7 | X23: 7 | Y23: 7
S24: 9 | T24: 9 | U24: 9 | W24: 9 | X24: 9 | Y24: 9
S25: 7 | T25: 8 | U25: 8 | W25: 7 | X25: 8 | Y25: 7
S26: 9 | T26: 9 | U26: 9 | W26: 10 | X26: 10 | Y26: 10
S27: 6 | T27: 7 | U27: 7 | W27: 7 | X27: 8 | Y27: 8
S28: FSIQ | T28: Diff | U28: Discrepancy SD (+ or -) | V28: .05 Sign | X28: NVIQ | Y28: Diff | AA28: .05 Sign | AC28: VIQ | AD28: Diff | AF28: .05 Sign
S29: =IF(fsiq="","",0.57*(fsiq-100)+100) -> 93.16 | T29: =C11-S29 -> -93.16 | U29: =T29/(15*SQRT(1-(0.54)^2)) -> -7.379024368 | V29: =IF(ABS(T29)>IF(agey>11,W9,S9),"sgn","") -> sgn | W29: =LOOKUP(ABS(U29),$S$3:$AF$6) -> <1 | X29: =IF(nviq="","",0.54*(nviq-100)+100) -> 90.28 | Y29: =C11-X29 -> -90.28 | Z29: =Y29/(15*SQRT(1-(0.54)^2)) -> -7.150905109 | AA29: =IF(ABS(Y29)>IF(agey>11,X9,T9),"sgn","") -> sgn | AB29: =LOOKUP(ABS(Z29),$S$3:$AF$6) -> <1 | AC29: =IF(viq="","",0.54*(viq-100)+100) -> 97.3 | AD29: =C11-AC29 -> -97.3 | AE29: =AD29/(15*SQRT(1-(0.54)^2)) -> -7.706945803 | AF29: =IF(ABS(AD29)>IF(agey>11,Y9,U9),"sgn","") -> sgn | AG29: =LOOKUP(ABS(AE29),$S$3:$AF$6) -> <1
S30: =IF(fsiq="","",0.5*(fsiq-100)+100) -> 94 | T30: -94 | U30: =T30/(15*SQRT(1-(0.5)^2)) -> -7.236123374 | V30: sgn | W30: <1 | X30: =IF(nviq="","",0.47*(nviq-100)+100) -> 91.54 | Y30: -91.54 | Z30: =Y30/(15*SQRT(1-(0.47)^2)) -> -6.913899253 | AA30: sgn | AB30: <1 | AC30: =IF(viq="","",0.5*(viq-100)+100) -> 97.5 | AD30: -97.5 | AE30: =AD30/(15*SQRT(1-(0.5)^2)) -> -7.505553499 | AF30: sgn | AG30: <1
S31: =IF(fsiq="","",0.64*(fsiq-100)+100) -> 92.32 | T31: -92.32 | U31: =T31/(15*SQRT(1-(0.64)^2)) -> -8.009978721 | V31: sgn | W31: <1 | X31: =IF(nviq="","",0.6*(nviq-100)+100) -> 89.2 | Y31: -89.2 | Z31: =Y31/(15*SQRT(1-(0.6)^2)) -> -7.433333333 | AA31: sgn | AB31: <1 | AC31: =IF(viq="","",0.61*(viq-100)+100) -> 96.95 | AD31: -96.95 | AE31: =AD31/(15*SQRT(1-(0.61)^2)) -> -8.156640339 | AF31: sgn | AG31: <1
S32: =IF(fsiq="","",0.44*(fsiq-100)+100) -> 94.72 | T32: -94.72 | U32: =T32/(15*SQRT(1-(0.44)^2)) -> -7.031940232 | V32: sgn | W32: <1 | X32: =IF(nviq="","",0.43*(nviq-100)+100) -> 92.26 | Y32: -92.26 | Z32: =Y32/(15*SQRT(1-(0.43)^2)) -> -6.812660463 | AA32: sgn | AB32: <1 | AC32: =IF(viq="","",0.42*(viq-100)+100) -> 97.9 | AD32: -97.9 | AE32: =AD32/(15*SQRT(1-(0.42)^2)) -> -7.19172817 | AF32: sgn | AG32: <1
S33: =IF(fsiq="","",0.5*(fsiq-100)+100) -> 94 | T33: -94 | U33: =T33/(15*SQRT(1-(0.5)^2)) -> -7.236123374 | V33: sgn | W33: <1 | X33: =IF(nviq="","",0.5*(nviq-100)+100) -> 91 | Y33: -91 | Z33: =Y33/(15*SQRT(1-(0.5)^2)) -> -7.005183266 | AA33: sgn | AB33: <1 | AC33: =IF(viq="","",0.44*(viq-100)+100) -> 97.8 | AD33: -97.8 | AE33: =AD33/(15*SQRT(1-(0.44)^2)) -> -7.260597072 | AF33: sgn | AG33: <1
S34: =IF(fsiq="","",0.68*(fsiq-100)+100) -> 91.84 | T34: -91.84 | U34: =T34/(15*SQRT(1-(0.68)^2)) -> -8.350471266 | V34: sgn | W34: <1 | X34: =IF(nviq="","",0.64*(nviq-100)+100) -> 88.48 | Y34: -88.48 | Z34: =Y34/(15*SQRT(1-(0.64)^2)) -> -7.676808029 | AA34: sgn | AB34: <1 | AC34: =IF(viq="","",0.64*(viq-100)+100) -> 96.8 | AD34: -96.8 | AE34: =AD34/(15*SQRT(1-(0.64)^2)) -> -8.398677862 | AF34: sgn | AG34: <1
S35: =IF(fsiq="","",0.64*(fsiq-100)+100) -> 92.32 | T35: -92.32 | U35: =T35/(15*SQRT(1-(0.64)^2)) -> -8.009978721 | V35: sgn | W35: <1 | X35: =IF(nviq="","",0.6*(nviq-100)+100) -> 89.2 | Y35: -89.2 | Z35: =Y35/(15*SQRT(1-(0.6)^2)) -> -7.433333333 | AA35: sgn | AB35: <1 | AC35: =IF(viq="","",0.62*(viq-100)+100) -> 96.9 | AD35: -96.9 | AE35: =AD35/(15*SQRT(1-(0.62)^2)) -> -8.233475782 | AF35: sgn | AG35: <1
S36: =IF(fsiq="","",0.53*(fsiq-100)+100) -> 93.64 | T36: -93.64 | U36: =T36/(15*SQRT(1-(0.53)^2)) -> -7.361655695 | V36: sgn | W36: <1 | X36: =IF(nviq="","",0.49*(nviq-100)+100) -> 91.18 | Y36: -91.18 | Z36: =Y36/(15*SQRT(1-(0.49)^2)) -> -6.973167648 | AA36: sgn | AB36: <1 | AC36: =IF(viq="","",0.5*(viq-100)+100) -> 97.5 | AD36: -97.5 | AE36: =AD36/(15*SQRT(1-(0.5)^2)) -> -7.505553499 | AF36: sgn | AG36: <1
S37: =IF(fsiq="","",0.4*(fsiq-100)+100) -> 95.2 | T37: -95.2 | U37: =T37/(15*SQRT(1-(0.4)^2)) -> -6.92478105 | V37: sgn | W37: <1 | X37: =IF(nviq="","",0.38*(nviq-100)+100) -> 93.16 | Y37: -93.16 | Z37: =Y37/(15*SQRT(1-(0.38)^2)) -> -6.714332326 | AA37: sgn | AB37: <1 | AC37: =IF(viq="","",0.38*(viq-100)+100) -> 98.1 | AD37: -98.1 | AE37: =AD37/(15*SQRT(1-(0.38)^2)) -> -7.070373564 | AF37: sgn | AG37: <1
S38: =IF(fsiq="","",0.57*(fsiq-100)+100) -> 93.16 | T38: -93.16 | U38: =T38/(15*SQRT(1-(0.57)^2)) -> -7.558822842 | V38: sgn | W38: <1 | X38: =IF(nviq="","",0.51*(nviq-100)+100) -> 90.82 | Y38: -90.82 | Z38: =Y38/(15*SQRT(1-(0.51)^2)) -> -7.03888265 | AA38: sgn | AB38: <1 | AC38: =IF(viq="","",0.57*(viq-100)+100) -> 97.15 | AD38: -97.15 | AE38: =AD38/(15*SQRT(1-(0.57)^2)) -> -7.882563752 | AF38: sgn | AG38: <1
S39: =IF(fsiq="","",0.68*(fsiq-100)+100) -> 91.84 | T39: -91.84 | U39: =T39/(15*SQRT(1-(0.68)^2)) -> -8.350471266 | V39: sgn | W39: <1 | X39: =IF(nviq="","",0.62*(nviq-100)+100) -> 88.84 | Y39: -88.84 | Z39: =Y39/(15*SQRT(1-(0.62)^2)) -> -7.548627332 | AA39: sgn | AB39: <1 | AC39: =IF(viq="","",0.65*(viq-100)+100) -> 96.75 | AD39: -96.75 | AE39: =AD39/(15*SQRT(1-(0.65)^2)) -> -8.487576865 | AF39: sgn | AG39: <1
S40: =IF(fsiq="","",0.7*(fsiq-100)+100) -> 91.6 | T40: -91.6 | U40: =T40/(15*SQRT(1-(0.7)^2)) -> -8.551043713 | V40: sgn | W40: <1 | X40: =IF(nviq="","",0.66*(nviq-100)+100) -> 88.12 | Y40: -88.12 | Z40: =Y40/(15*SQRT(1-(0.66)^2)) -> -7.819693429 | AA40: sgn | AB40: <1 | AC40: =IF(viq="","",0.67*(viq-100)+100) -> 96.65 | AD40: -96.65 | AE40: =AD40/(15*SQRT(1-(0.67)^2)) -> -8.679513716 | AF40: sgn | AG40: <1
V41: =IF(ABS(T41)>IF(agey>11,W21,S21),"*","") ->  | AF41: =IF(ABS(AD41)>IF(agey>11,Y21,U21),"*","") -> 
S42: =IF(fsiq="","",0.54*(fsiq-100)+100) -> 93.52 | T42: =C24-S42 -> -93.52 | U42: =T42/(15*SQRT(1-(0.54)^2)) -> -7.407539276 | V42: =IF(ABS(T42)>IF(agey>11,W21,S21),"sgn","") -> sgn | W42: =LOOKUP(ABS(U42),$S$3:$AF$6) -> <1 | X42: =IF(nviq="","",0.51*(nviq-100)+100) -> 90.82 | Y42: =C24-X42 -> -90.82 | Z42: =Y42/(15*SQRT(1-(0.51)^2)) -> -7.03888265 | AA42: =IF(ABS(Y42)>IF(agey>11,X21,T21),"sgn","") -> sgn | AB42: =LOOKUP(ABS(Z42),$S$3:$AF$6) -> <1 | AC42: =IF(viq="","",0.51*(viq-100)+100) -> 97.45 | AD42: =C24-AC42 -> -97.45 | AE42: =AD42/(15*SQRT(1-(0.51)^2)) -> -7.552731934 | AF42: =IF(ABS(AD42)>IF(agey>11,Y21,U21),"sgn","") -> sgn | AG42: =LOOKUP(ABS(AE42),$S$3:$AF$6) -> <1
S43: =IF(fsiq="","",0.75*(fsiq-100)+100) -> 91 | T43: -91 | U43: =T43/(15*SQRT(1-(0.75)^2)) -> -9.171937878 | V43: sgn | W43: <1 | X43: =IF(nviq="","",0.71*(nviq-100)+100) -> 87.22 | Y43: -87.22 | Z43: =Y43/(15*SQRT(1-(0.71)^2)) -> -8.257104275 | AA43: sgn | AB43: <1 | AC43: =IF(viq="","",0.71*(viq-100)+100) -> 96.45 | AD43: -96.45 | AE43: =AD43/(15*SQRT(1-(0.71)^2)) -> -9.130906986 | AF43: sgn | AG43: <1
S44: =IF(fsiq="","",0.66*(fsiq-100)+100) -> 92.08 | T44: -92.08 | U44: =T44/(15*SQRT(1-(0.68)^2)) -> -8.372293055 | V44: sgn | W44: <1 | X44: =IF(nviq="","",0.64*(nviq-100)+100) -> 88.48 | Y44: -88.48 | Z44: =Y44/(15*SQRT(1-(0.64)^2)) -> -7.676808029 | AA44: sgn | AB44: <1 | AC44: =IF(viq="","",0.66*(viq-100)+100) -> 96.7 | AD44: -96.7 | AE44: =AD44/(15*SQRT(1-(0.68)^2)) -> -8.792362494 | AF44: sgn | AG44: <1
S45: =IF(fsiq="","",0.63*(fsiq-100)+100) -> 92.44 | T45: -92.44 | U45: =T45/(15*SQRT(1-(0.63)^2)) -> -7.935494839 | V45: sgn | W45: <1 | X45: =IF(nviq="","",0.6*(nviq-100)+100) -> 89.2 | Y45: -89.2 | Z45: =Y45/(15*SQRT(1-(0.6)^2)) -> -7.433333333 | AA45: sgn | AB45: <1 | AC45: =IF(viq="","",0.6*(viq-100)+100) -> 97 | AD45: -97 | AE45: =AD45/(15*SQRT(1-(0.6)^2)) -> -8.083333333 | AF45: sgn | AG45: <1
S46: =IF(fsiq="","",0.72*(fsiq-100)+100) -> 91.36 | T46: -91.36 | U46: =T46/(15*SQRT(1-(0.72)^2)) -> -8.77650476 | V46: sgn | W46: <1 | X46: =IF(nviq="","",0.68*(nviq-100)+100) -> 87.76 | Y46: -87.76 | Z46: =Y46/(15*SQRT(1-(0.68)^2)) -> -7.979500853 | AA46: sgn | AB46: <1 | AC46: =IF(viq="","",0.69*(viq-100)+100) -> 96.55 | AD46: -96.55 | AE46: =AD46/(15*SQRT(1-(0.69)^2)) -> -8.892765082 | AF46: sgn | AG46: <1
S47: =IF(fsiq="","",0.59*(fsiq-100)+100) -> 92.92 | T47: -92.92 | U47: =T47/(15*SQRT(1-(0.59)^2)) -> -7.672333131 | V47: sgn | W47: <1 | X47: =IF(nviq="","",0.58*(nviq-100)+100) -> 89.56 | Y47: -89.56 | Z47: =Y47/(15*SQRT(1-(0.58)^2)) -> -7.329420477 | AA47: sgn | AB47: <1 | AC47: =IF(viq="","",0.53*(viq-100)+100) -> 97.35 | AD47: -97.35 | AE47: =AD47/(15*SQRT(1-(0.53)^2)) -> -7.653323173 | AF47: sgn | AG47: <1
S48: =IF(fsiq="","",0.75*(fsiq-100)+100) -> 91 | T48: -91 | U48: =T48/(15*SQRT(1-(0.75)^2)) -> -9.171937878 | V48: sgn | W48: <1 | X48: =IF(nviq="","",0.71*(nviq-100)+100) -> 87.22 | Y48: -87.22 | Z48: =Y48/(15*SQRT(1-(0.71)^2)) -> -8.257104275 | AA48: sgn | AB48: <1 | AC48: =IF(viq="","",0.71*(viq-100)+100) -> 96.45 | AD48: -96.45 | AE48: =AD48/(15*SQRT(1-(0.71)^2)) -> -9.130906986 | AF48: sgn | AG48: <1
T50: ='SB V vs WJ III Ach'!D10 -> WJ III | U50: ='SB V vs WJ III Ach'!F10 -> Predicted Score
S51: ='SB V vs WJ III Ach'!B11 -> LWI | T51: ='SB V vs WJ III Ach'!D11 -> 103 | U51: ='SB V vs WJ III Ach'!F11 -> 90.28
S52: ='SB V vs WJ III Ach'!B12 -> Und Dir | T52: ='SB V vs WJ III Ach'!D12 -> 0 | U52: ='SB V vs WJ III Ach'!F12 -> 
S53: ='SB V vs WJ III Ach'!B13 -> Calc | T53: ='SB V vs WJ III Ach'!D13 -> 80 | U53: ='SB V vs WJ III Ach'!F13 -> 89.2
S54: ='SB V vs WJ III Ach'!B14 -> Math Fl | T54: ='SB V vs WJ III Ach'!D14 -> 79 | U54: ='SB V vs WJ III Ach'!F14 -> 92.26
S55: ='SB V vs WJ III Ach'!B15 -> Wrt Fl | T55: ='SB V vs WJ III Ach'!D15 -> 0 | U55: ='SB V vs WJ III Ach'!F15 -> 
S56: ='SB V vs WJ III Ach'!B16 -> Pass Comp | T56: ='SB V vs WJ III Ach'!D16 -> 95 | U56: ='SB V vs WJ III Ach'!F16 -> 88.48
S57: ='SB V vs WJ III Ach'!B17 -> App Prob | T57: ='SB V vs WJ III Ach'!D17 -> 89 | U57: ='SB V vs WJ III Ach'!F17 -> 89.2
S58: ='SB V vs WJ III Ach'!B18 -> Wrt Smpl | T58: ='SB V vs WJ III Ach'!D18 -> 96 | U58: ='SB V vs WJ III Ach'!F18 -> 91.18
S59: ='SB V vs WJ III Ach'!B19 -> Wrd Att | T59: ='SB V vs WJ III Ach'!D19 -> 99 | U59: ='SB V vs WJ III Ach'!F19 -> 93.16
S60: ='SB V vs WJ III Ach'!B20 -> Pic Voc | T60: ='SB V vs WJ III Ach'!D20 -> 0 | U60: ='SB V vs WJ III Ach'!F20 -> 
S61: ='SB V vs WJ III Ach'!B21 -> Rdg Voc | T61: ='SB V vs WJ III Ach'!D21 -> 0 | U61: ='SB V vs WJ III Ach'!F21 -> 
S62: ='SB V vs WJ III Ach'!B22 -> Quant Con | T62: ='SB V vs WJ III Ach'!D22 -> 88 | U62: ='SB V vs WJ III Ach'!F22 -> 88.12
S64: ='SB V vs WJ III Ach'!B24 -> Bsc Rdg Skills | T64: ='SB V vs WJ III Ach'!D24 -> 95 | U64: ='SB V vs WJ III Ach'!F24 -> 90.82
S65: ='SB V vs WJ III Ach'!B25 -> Rdg Comp. | T65: ='SB V vs WJ III Ach'!D25 -> 0 | U65: ='SB V vs WJ III Ach'!F25 -> 
S66: ='SB V vs WJ III Ach'!B26 -> Brd Math | T66: ='SB V vs WJ III Ach'!D26 -> 84 | U66: ='SB V vs WJ III Ach'!F26 -> 88.48
S67: ='SB V vs WJ III Ach'!B27 -> Math Calc. | T67: ='SB V vs WJ III Ach'!D27 -> 0 | U67: ='SB V vs WJ III Ach'!F27 -> 
S68: ='SB V vs WJ III Ach'!B28 -> Math Rsn | T68: ='SB V vs WJ III Ach'!D28 -> 0 | U68: ='SB V vs WJ III Ach'!F28 -> 
S69: ='SB V vs WJ III Ach'!B29 -> Written Expr | T69: ='SB V vs WJ III Ach'!D29 -> 0 | U69: ='SB V vs WJ III Ach'!F29 -> 
S70: ='SB V vs WJ III Ach'!B30 -> Acad Appl | T70: ='SB V vs WJ III Ach'!D30 -> 0 | U70: ='SB V vs WJ III Ach'!F30 -> 
